Cogmind - Beta 11 @@@ ROGUE MODE // 2022.03.26 @ 21:07:02 Player: Cracklepappy Result: Destroyed by D-53 Grenadier with Mini Grenade Launcher Performance ------------- Evolutions (0) 0 Regions Visited (2) 400 Robots Destroyed (28) 140 Value Destroyed (553) 553 Prototype IDs (0) 0 Alien Tech Used (0) 0 Bonus (-140) -140 TOTAL SCORE: 953 Bonus ------- Follower Combat Kills 7 Friendly Fire -147 Cogmind --------- Core Integrity 0/250 Matter 290/300 Energy 96/100 System Corruption 0% Temperature Cool (0) Movement Core (400) Ox7 Location -10/Mines Parts ------- > --- POWER (1) -------- (None) > --- PROPULSION (2) --- (None) > --- UTILITY (2) ------ Large Storage Unit Core Shielding > --- WEAPON (2) ------- Light Assault Rifle Light Assault Rifle > --- INVENTORY (15) --- Light Ion Engine Compact Wheel Large Storage Unit Large Storage Unit Medium Matter Pod (100) Medium Matter Pod (100) Improved Terrain Scanner Seismic Detector Light Assault Rifle Light Assault Rifle Light Assault Rifle Light Assault Rifle Grenade Launcher Mining Laser Peak State ------------ > --- POWER ------------ Light Ion Engine > --- PROPULSION ------- Light Treads Compact Wheel > --- UTILITY ---------- Small Storage Unit Seismic Detector > --- WEAPON ----------- Medium Laser Light Assault Rifle > --- INVENTORY -------- Light Ion Engine Light Treads Compact Wheel Compact Wheel Small Storage Unit Improved Terrain Scanner Light Assault Rifle Mining Laser [Rating: 8] Favorites ----------- Power Light Ion Engine Engine Light Ion Engine Propulsion Light Treads Treads Light Treads Wheel Compact Wheel Utility Large Storage Unit Device Seismic Detector Storage Large Storage Unit Protection Core Shielding Weapon Light Assault Rifle Energy Gun Medium Laser Ballistic Gun Light Assault Rifle Launcher Grenade Launcher Build | -11 -10 -10 ------- Run | Scr Mat Min Slots Evolved . | . . . Power . | . . . Propulsion . | . . . Utility . | . . . Weapon . | . . . Parts Attached 20 | 7 9 4 Power 1 | 1 . . Engine 1 | 1 . . Core . | . . . Reactor . | . . . Propulsion 4 | 2 2 . Treads 3 | 1 2 . Leg . | . . . Wheel 1 | 1 . . Hover . | . . . Flight . | . . . Utility 4 | 2 1 1 Device 1 | 1 . . Storage 2 | 1 1 . Processor . | . . . Hackware . | . . . Protection 1 | . . 1 Artifact . | . . . Weapon 11 | 2 6 3 Energy Gun 1 | 1 . . Energy Cannon . | . . . Ballistic Gun 7 | 1 4 2 Ballistic Cannon . | . . . Launcher 3 | . 2 1 Special Weapon . | . . . Impact Weapon . | . . . Slashing Weapon . | . . . Piercing Weapon . | . . . Special Melee Weapon . | . . . Unidentified Prototypes . | . . . Parts Lost 8 | . 4 4 Power 1 | . 1 . Propulsion 3 | . 1 2 Utility . | . . . Weapon 4 | . 2 2 Highest Loss Streak 3 | . 2 3 To Critical Strikes . | . . . Average Slot Usage (%) 93 | . 99 84 Engine 8 | . 13 . Treads 20 | . 15 28 Wheel 7 | . 12 . Device 8 | . 14 . Storage 14 | . 14 14 Protection 5 | . . 14 Ballistic Gun 22 | . 26 16 Launcher 4 | . . 11 Naked Turns . | . . . Heaviest Build 28 | 12 28 25 Greatest Support 20 | 20 20 20 Greatest Overweight (x) 1 | . 1 1 Average Overweight (x) . | . . 1 Largest Inventory Capacity 15 | 8 15 15 Average Capacity 14 | 7 14 15 Most Carried 15 | 8 15 15 Average Carried 13 | 5 13 13 Final Capacity 15 | 8 15 15 Final Carried 14 | 8 13 14 Class Distribution -------------------- 100% | Mutant Dominant Class ---------------- Mutant | -10/Materials Mutant | -10/Mines Resources | -11 -10 -10 ----------- Run | Scr Mat Min Matter Collected 768 | 281 452 35 Remotely . | . . . Salvage Created 749 | 155 530 64 Parts 62 | 19 36 7 Haulers Intercepted . | . . . Recyclers Shooed . | . . . Parts Field Recycled . | . . . Retrieved Matter . | . . . Parts Self-Destructed . | . . . Prevented . | . . . Kills | -11 -10 -10 ------- Run | Scr Mat Min Combat Hostiles Destroyed 18 | . 16 2 Guns 12 | . 12 . AOE 6 | . 4 2 Classes Destroyed 7 | 3 4 . Worker 1 | 1 . . Builder 2 | . 2 . Tunneler 3 | 3 . . Recycler 1 | 1 . . Watcher 2 | . 2 . Swarmer 8 | . 6 2 Grunt 11 | . 10 1 Best Kill Streak 3 | 2 3 2 Combat Bots Only 3 | . 3 2 Max Kills in Single Turn 3 | 1 2 3 Gunslinging . | . . . Exploded 2 | . 1 2 Melee . | . . . Uniques/NPCs Destroyed . | . . . Combat | -11 -10 -10 -------- Run | Scr Mat Min Damage Taken 1146 | . 832 314 Core 255 | . 215 40 Absorbed by Shields . | . . . Redirected to Shielding 3 | . . 3 Core Remaining (%) 100 | 100 . . Volleys Fired 79 | 11 64 4 Largest 2 | 2 2 2 Hottest 70 | 70 40 50 Shots Fired 148 | 22 119 7 Gun 139 | 22 112 5 Cannon . | . . . Launcher 9 | . 7 2 Special . | . . . Kinetic 128 | 11 112 5 Thermal 11 | 11 . . Explosive 9 | . 7 2 Electromagnetic . | . . . Robot Hit Streak 12 | 12 12 1 Robot Miss Streak 5 | 1 5 2 Penetration Max . | . . . Secondary Targets 1 | . 1 . Max Gunslinging Chain 1 | . 1 . Shots Hit Robots 92 | 16 74 2 Core Hits 53 | 9 34 10 Critical Kills . | . . . Critical Parts Destroyed . | . . . Critical Strikes . | . . . Melee Attacks . | . . . Impact . | . . . Slashing . | . . . Piercing . | . . . Sneak Attacks . | . . . Combat Hostiles . | . . . Follow-up Attacks . | . . . Damage Inflicted 1393 | 158 1112 123 Guns 784 | 158 596 30 Cannons . | . . . Explosions 609 | . 516 93 Melee . | . . . Ramming . | . . . Kinetic 674 | 48 596 30 Thermal 110 | 110 . . Explosive 609 | . 516 93 Electromagnetic . | . . . Impact . | . . . Slashing . | . . . Piercing . | . . . Highest Corruption . | . . . Average Corruption . | . . . Corruption Purged . | . . . Corruption Blocked . | . . . Overload Shots . | . . . Overflow Damage 150 | . 128 22 Projectiles . | . . . Explosions 150 | . 128 22 Melee . | . . . Knockbacks . | . . . Impact . | . . . Kinetic . | . . . Secondary . | . . . Self-Inflicted Damage 285 | . 243 42 Shots 6 | . 4 2 Rammed . | . . . Targets Rammed . | . . . Kicked . | . . . Crushed . | . . . Highest Temperature 60 | 60 26 . Average Temperature 17 | 27 8 . Received Heat Transfer 258 | . 258 . Siege Activations . | . . . Robots Corrupted . | . . . Combat Hostiles . | . . . Parts Fried . | . . . Impact Corruptions . | . . . Robots Melted . | . . . Combat Hostiles . | . . . Parts Melted . | . . . Heat Transferred 333 | 333 . . Parts Sabotaged . | . . . Parts Stolen . | . . . Parts Stripped . | . . . Power Chain Reactions . | . . . Missiles Intercepted . | . . . Alert | -11 -10 -10 ------- Run | Scr Mat Min Peak Influence 442 | 25 442 238 Initial 144 | . 16 144 Average 167 | 10 212 133 Maximum Alert Level 2 | . 2 1 Low Security (%) 52 | 100 41 58 Level 1 44 | . 53 41 Level 2 2 | . 5 . Level 3 . | . . . Level 4 . | . . . Level 5 . | . . . High Security . | . . . Max Security . | . . . Squads Dispatched 4 | . 4 . Investigation 2 | . 2 . Extermination . | . . . Reinforcement 2 | . 2 . Assault . | . . . Garrison . | . . . Intercept . | . . . Searches Triggered . | . . . Construction Impeded . | . . . Haulers Reinforced . | . . . Active Scanning Responses . | . . . Cargo Convoy Interrupts . | . . . Stealth | -11 -10 -10 --------- Run | Scr Mat Min Distress Signals 2 | . 2 . Communications Jammed . | . . . Distress Signals . | . . . Times Spotted 31 | . 26 5 Peak Tracking Total 4 | . 4 3 Tactical Retreats 1 | . . 1 Traps | -11 -10 -10 ------- Run | Scr Mat Min Traps Triggered 2 | . 2 . Indirectly . | . . . Trap Hack Attempts . | . . . Triggered . | . . . Disarmed . | . . . Reprogrammed . | . . . Reused . | . . . Traps Extracted . | . . . Installed . | . . . Triggered . | . . . Machines | -11 -10 -10 ---------- Run | Scr Mat Min Machines Disabled 5 | . 5 . Max in Single Turn 2 | . 2 . Machines Sabotaged . | . . . Garrisons Compromised . | . . . Overloaded Fab Kills . | . . . Hacking | -11 -10 -10 --------- Run | Scr Mat Min Machines Accessed 4 | . 3 1 Terminals 3 | . 2 1 Fabricators . | . . . Repair Stations . | . . . Recycling Units 1 | . 1 . Scanalyzers . | . . . Garrison Access . | . . . Total Hacks 8 | . 6 2 Successful 6 | . 5 1 Failed 2 | . 1 1 Catastrophic . | . . . Database Lockouts . | . . . Manual 1 | . 1 . Terminals 7 | . 5 2 Fabricators . | . . . Repair Stations . | . . . Recycling Units 1 | . 1 . Scanalyzers . | . . . Garrison Access . | . . . Terminal Hacks 5 | . 4 1 Branch Access Points 1 | . 1 . Locate Traps 2 | . 2 . Zone Layout 2 | . 1 1 Fabricator Hacks . | . . . Repair Station Hacks . | . . . Recycling Unit Hacks . | . . . Scanalyzer . | . . . Garrison Access Hacks . | . . . Unauthorized Hacks 1 | . 1 . Terminals . | . . . Fabricators . | . . . Repair Stations . | . . . Recycling Units 1 | . 1 . Tunnel 1 | . 1 . Scanalyzers . | . . . Garrison Access . | . . . Data Cores Recovered . | . . . Used . | . . . Hacking Detections 2 | . 2 . Full Trace Events . | . . . Feedback Events . | . . . Feedback Blocked . | . . . Robot Schematics Acquired . | . . . Robots Built . | . . . Authchips . | . . . Time . | . . . Total Robot Build Rating . | . . . Part Schematics Acquired . | . . . Parts Built . | . . . Authchips . | . . . Time . | . . . Total Part Build Rating . | . . . Parts Repaired . | . . . Time . | . . . Parts Recycled . | . . . Recycled Matter . | . . . Retrieved Matter . | . . . Retrieved Components . | . . . Parts Scanalyzed . | . . . Part Schematics Acquired . | . . . Parts Damaged . | . . . Bothacking | -11 -10 -10 ------------ Run | Scr Mat Min Used RIF Installer . | . . . Robots Hacked . | . . . Non-combat . | . . . Combat . | . . . Robot Hacks Applied . | . . . Relay Couplers Released . | . . . Fabnet Peak Effective % . | . . . Robots Rewired . | . . . Allies Hacked . | . . . Hacks Repelled . | . . . Allies | -11 -10 -10 -------- Run | Scr Mat Min Total Allies 3 | . . 3 Largest Group 3 | . . 3 Highest-Rated Group 40 | . . 40 Highest-Rated Ally 16 | . . 16 Total Orders . | . . . Ally Attacks 5 | . . 5 Total Damage 10 | . . 10 Kills 1 | . . 1 Allies Corrupted . | . . . Allies Melted . | . . . Intel | -11 -10 -10 ------- Run | Scr Mat Min Robot Analysis Total . | . . . Derelict Logs Recovered . | . . . Drone Launches . | . . . Drone Recoveries . | . . . Exploration | -11 -10 -10 ------------- Run | Scr Mat Min Turns Passed 1804 | 147 995 662 Spaces Moved 858 | 98 499 261 Core 2 | 2 . . Treads 289 | 2 26 261 Legs . | . . . Wheels 567 | 94 473 . Hover . | . . . Flight . | . . . Fastest Speed 50 | 50 100 240 Average Speed 154 | 100 119 240 Slowest Speed 240 | 160 240 240 Overloaded Moves . | . . . Propulsion Burnouts . | . . . Robots Hopped . | . . . Cave-ins Triggered . | . . . Exploration Rate (%) 44 | 5 82 45 Regions Visited 2 Branch Regions 1 Pre-discovered Areas 1 | . 1 . Known Exits Taken 1 | . 1 . Unknown Exits Taken 1 | 1 . . Scrap Searched 1 | . . 1 Spaces Dug . | . . . Terrain Destroyed 74 | . 63 11 Melee . | . . . Projectile . | . . . AOE 74 | . 63 11 Terrain Rammed . | . . . Walls Destroyed . | . . . Machines Disabled . | . . . Actions | -11 -10 -10 --------- Run | Scr Mat Min Total 1220 | 124 802 294 Wait 224 | . 208 16 Move 856 | 97 498 261 Hop . | . . . Pick Up 30 | 9 15 6 Fast Attach 6 | 6 . . Attach 7 | 1 4 2 Detach . | . . . Swap 7 | . 5 2 Drop 11 | . 8 3 Fire 79 | 11 64 4 Melee . | . . . Ram . | . . . Kick . | . . . Crush . | . . . Escape Stasis . | . . . Rewire . | . . . Trap . | . . . Miscellaneous . | . . . Route ------- -11/Scrapyard -10/Materials (discovered 4 exits: [*Mat x2] / *Min x2) -10/Mines (discovered 2 exits: [*Mat x2]) History --------- Turn | Location | Event 16 | -11/Scrapyard | Discovered new exit (range 15) 148 | -11/Scrapyard | Entered Materials 311 | -10/Materials | Build established: Mutant 660 | -10/Materials | Discovered new exit (range 16) 768 | -10/Materials | Discovered new exit (range 8) 898 | -10/Materials | Core integrity fell below 50% 907 | -10/Materials | Discovered new exit (range 14) 928 | -10/Materials | Identified exit to Mines 1094 | -10/Materials | Core integrity fell below 20% 1143 | -10/Materials | Entered Mines 1150 | -10/Mines | Assisted by bots powering up and referring to "LRC-V3" 1171 | -10/Mines | Met a Derelict bent on vengeance 1371 | -10/Mines | Discovered new exit (range 15) 1518 | -10/Mines | Discovered new exit (range 9) 1778 | -10/Mines | Assembled infested the area 1783 | -10/Mines | Assisted by a Guerilla fighting off Assembled 1805 | -10/Mines | Destroyed by D-53 Grenadier with Mini Grenade Launcher Last Messages --------------- 01744_ Dropped Med. Laser. 01747_ Acquired Lgt. Assault Rifle. 01758_ Connecting with Terminal... >>Layout(Zone) Retrieving Zone 9B layout... Downloaded map data. 01778_ ALERT: Infestation in the mines, dispatching Demolisher response squad. 01783_ A derelict emerges from the shadows: "You need to get out of here! I've been tracking a group of Assembled to figure out where they're coming from, and they're closing on this area, come on!" 01798_ C-30 ARC bursts open, deploying its payload. 01798_ D-53 Grenadier unfolds itself. 01798_ U-05 Engineer destroyed. 01798_ Core Extractor disabled. 01798_ Grenade Launcher destroyed. 01798_ Destroyed Grenade Launcher. 01803_ The unstable cave ceiling collapses. 01803_ Lgt. Treads destroyed. 01804_ K-01 Serf destroyed. Map ----- +----------------------------------------------------+ | ???# #???????## ##???? | | ???# #????????#### ##???? | | ???## #???????????##### %#### #???? | | ???## ##???????????????##% ##?# #???? | | ??## ##????????#########* ##?## ## ##???? | | ?## ########## ##??##### #????? | | ## %% #???????# #????? | | # #### ######### ## ##???????# #????? | | # ##?# #???????# ####????????# #????? | | # ### #???????# #???????????# ###### | | # #???????# #########???# | | # ######???????# ???# | | # #????????????# #########???######### | | ## ## ######???????# #???????????????????? | | ?######### < #???????# #???????????????????? | | ?????????## ### ######### #???????????????????? | | ??????????# #?# ## #???????????????????? | | ??????????## ##?######## ## ###?????????????????? | | ???????????####?????????# #?????#???????????? | | ????????????????????????###### #????##??? ??????? | | ?????????????????????####?#### #?#### ? ??????? | | ????????????????????##T # ## ### ????? | | ???????????########## # ## ?????? | | ???????##### # #??????????? | | ???????"## d% #???????????? | | ??????? # @ d #???????????? | | ??????? " = #### ##???????????? | | ??????? " = #??####????????????? | | ??????? #X ## ##??????????????????? | | ???????"## ## #??????????????????? | | ???????##### ## ###### #??????????????????? | | ???????????### #######a#????# #??????????????????? | | ????????###### #?????# #????# #??????????????????? | | ????????# #?????# #????# ########???????????? | | ????????# ######?????# #????# ???????????? | | ????????# #??????????# #????##########???????????? | | ????????# #??????????# #?????????????#???????????? | | ?????????????????????# #?????????????????????????? | | ?????????????????????# #?????????????????????????? | | ?????????????????????# ?????????????????????????? | | ?????????????????????? #?????????????????????????? | | ??????????????????????#??????????????????????????? | | ?????????????????????????????????????????????????? | | ?????????????????????????????????????????????????? | | ?????????????????????????????????????????????????? | | ?????????????????????????????????????????????????? | | ?????????????????????????????????????????????????? | | ?????????????????????????????????????????????????? | | ?????????????????????????????????????????????????? | | ?????????????????????????????????????????????????? | +----------------------------------------------------+ Best States ------------- Heat Dissipation 25 Energy Generation 10 Energy Capacity 125 Matter Stores 300 Matter Capacity 300 Sight Range 16 Terrain Scan Density 10 Core Shielding 20 Evasion (%) 40 Recoil Reduction 1 Item Schematics ----------------- None Robot Schematics ------------------ None Fabricated ------------ Nothing Alien Tech Used ----------------- None Achievements -------------- None Challenges ------------ None Game ------ Seed CorruptionAblativeEngine Manual? 0 Play Time 00:13:27 Cumulative 296.7 hours Start 2022.03.26 @ 20:40:59 End 2022.03.26 @ 21:07:02 Sessions 3 Manual Loads 0 Difficulty Rogue Special Mode None Game No. 306 Rogue 306 Adventurer 0 Explorer 0 Win Type - Total 4 Types 4/0/0/0/0/0/0/0/0 Lore% 60 Gallery% 74 Achievement% 63 Wizard Run 0 Options --------- ASCII 0 Keyboard 0 Movement Numpad Keybinds 0 Fullscreen 2 Font 24/Terminus Map View 76x50 Tactical HUD 1 Map Filters NONE Filters NONE Steam 1 RUN: 0eb31e10-1455-4d27-adaa-bfb4501343f4